Cogmind - Beta 15 @@@ ROGUE MODE // 2025.06.15 @ 15:34:18 Player: Pancakes Result: Destroyed by G-47 Trooper with Particle Gun Performance ------------- Evolutions (0) 0 Regions Visited (1) 200 Robots Destroyed (13) 65 Value Destroyed (244) 244 Prototype IDs (0) 0 Alien Tech Used (0) 0 Bonus (0) 0 TOTAL SCORE: 509 Bonus ------- None Cogmind --------- Core Integrity 0/250 Matter 251/300 Energy 96/100 System Corruption 0% Temperature Cool (48) Movement Walking (190) Ox1 Location -10/Materials Parts ------- > --- POWER (1) -------- (None) > --- PROPULSION (2) --- Aluminum Leg > --- UTILITY (2) ------ Medium Armor Plating Medium Armor Plating > --- WEAPON (2) ------- Improved Light Cannon > --- INVENTORY (5) ---- Ion Engine Peak State ------------ > --- POWER ------------ Ion Engine > --- PROPULSION ------- Aluminum Leg Aluminum Leg > --- UTILITY ---------- Small Storage Unit Improved Terrain Scanner > --- WEAPON ----------- Light Assault Rifle Light Assault Rifle > --- INVENTORY -------- Ion Engine Light Ion Engine Mining Laser [Rating: 9] Favorites ----------- Power Ion Engine Engine Ion Engine Propulsion Aluminum Leg Leg Aluminum Leg Utility Small Storage Unit Device Improved Terrain Scanner Storage Small Storage Unit Protection Medium Armor Plating Weapon Light Assault Rifle Ballistic Gun Light Assault Rifle Ballistic Cannon Improved Light Cannon Special Weapon Mining Laser Build | -11 -10 ------- Run | Yrd Mat Slots Evolved . | . . Power . | . . Propulsion . | . . Utility . | . . Weapon . | . . Parts Attached 13 | 7 6 Power 2 | 1 1 Engine 2 | 1 1 Core . | . . Reactor . | . . Propulsion 3 | 2 1 Treads . | . . Leg 3 | 2 1 Wheel . | . . Hover . | . . Flight . | . . Utility 4 | 2 2 Device 1 | 1 . Storage 1 | 1 . Processor . | . . Hackware . | . . Protection 2 | . 2 Artifact . | . . Weapon 4 | 2 2 Energy Gun . | . . Energy Cannon . | . . Ballistic Gun 2 | 2 . Ballistic Cannon 1 | . 1 Launcher . | . . Special Weapon 1 | . 1 Impact Weapon . | . . Slashing Weapon . | . . Piercing Weapon . | . . Special Melee Weapon . | . . Unidentified Prototypes . | . . Parts Lost 8 | . 8 Power 2 | . 2 Propulsion 2 | . 2 Utility 1 | . 1 Weapon 3 | . 3 Highest Loss Streak 8 | . 8 To Critical Strikes . | . . Average Backups 2 | 2 2 Power 1 | 1 1 Propulsion . | . . Utility . | . . Weapon . | . . Tool/Special . | . . Unused Backups 2 | 1 1 Power 1 | . 1 Propulsion . | . . Utility . | . . Weapon 1 | 1 . Tool/Special . | . . Average Slot Usage (%) 97 | . 97 Engine 13 | . 13 Leg 27 | . 27 Device 13 | . 13 Storage 13 | . 13 Ballistic Gun 26 | . 26 Peak Build Rating 9 | 9 9 Average Rating 8 | 6 8 On Entrance 4 | . 9 Naked Turns . | . . Heaviest Build 13 | 13 13 Greatest Support 20 | 20 20 Greatest Overweight (x) . | . . Average Overweight (x) . | . . Largest Inventory Capacity 8 | 8 8 Average Capacity 7 | 7 7 Most Carried 4 | 4 4 Average Carried 2 | 2 2 Final Capacity 8 | 8 5 Final Carried 3 | 3 1 Class Distribution -------------------- 100% | Mutant Dominant Class ---------------- Mutant | -10/Materials Resources | -11 -10 ----------- Run | Yrd Mat Matter Collected 387 | 316 71 Remotely . | . . Salvage Created 428 | 190 238 Parts 31 | 21 10 Haulers Intercepted . | . . Recyclers Shooed . | . . Parts Field Recycled . | . . Retrieved Matter . | . . Parts Self-Destructed . | . . Prevented . | . . Kills | -11 -10 ------- Run | Yrd Mat Combat Hostiles Destroyed 5 | . 5 Guns 4 | . 4 Cannons 1 | . 1 Classes Destroyed 4 | 2 2 Tunneler 6 | 6 . Recycler 1 | 1 . Mechanic 1 | . 1 Grunt 5 | . 5 Best Kill Streak 4 | 3 4 Combat Bots Only 3 | . 3 Max Kills in Single Turn 1 | 1 1 Gunslinging . | . . Exploded . | . . Melee . | . . Uniques/NPCs Destroyed . | . . Combat | -11 -10 -------- Run | Yrd Mat Hostile Shots Fired 98 | . 98 Missed 22 | . 22 Hits 76 | . 76 Projectile 76 | . 76 Damage Taken 960 | . 960 Core 252 | . 252 Absorbed by Shields . | . . Core Remaining (%) 100 | 100 . Volleys Fired 69 | 23 46 Largest 2 | 2 2 Hottest 100 | 40 100 Shots Fired 130 | 46 84 Gun 122 | 46 76 Cannon 6 | . 6 Launcher . | . . Special 2 | . 2 Kinetic 128 | 46 82 Thermal 2 | . 2 Explosive . | . . Electromagnetic . | . . Robot Hit Streak 8 | 7 8 Robot Miss Streak 6 | 2 6 Penetration Max . | . . Secondary Targets . | . . Shots Hit Robots 78 | 28 50 Core Hits 34 | 14 20 Critical Kills . | . . Critical Parts Destroyed 1 | . 1 Critical Strikes 3 | . 3 Destroy 1 | . 1 Blast 2 | . 2 Melee Attacks . | . . Impact . | . . Slashing . | . . Piercing . | . . Sneak Attacks . | . . Combat Hostiles . | . . Follow-up Attacks . | . . Damage Inflicted 737 | 259 478 Guns 647 | 259 388 Cannons 66 | . 66 Explosions . | . . Melee . | . . Ramming . | . . Kinetic 713 | 259 454 Thermal 24 | . 24 Explosive . | . . Electromagnetic . | . . Impact . | . . Slashing . | . . Piercing . | . . Highest Corruption . | . . Average Corruption . | . . Corruption Purged . | . . Corruption Blocked . | . . Overload Shots . | . . Overflow Damage . | . . Projectiles . | . . Explosions . | . . Melee . | . . Knockbacks 1 | . 1 Impact . | . . Kinetic 1 | . 1 Secondary . | . . Self-Inflicted Damage . | . . Shots . | . . Rammed . | . . Targets Rammed . | . . Kicked . | . . Crushed . | . . Highest Temperature 93 | . 93 Average Temperature 24 | . 24 Received Heat Transfer 543 | . 543 Siege Activations . | . . Martial Activations . | . . Shielding Activations . | . . Robots Disrupted . | . . Combat Hostiles . | . . Robots Corrupted . | . . Combat Hostiles . | . . Parts Fried . | . . Impact Corruptions . | . . Robots Melted . | . . Combat Hostiles . | . . Parts Melted . | . . Heat Transferred 50 | . 50 Parts Sabotaged . | . . Parts Stolen . | . . Parts Stripped . | . . Power Chain Reactions . | . . Alert | -11 -10 ------- Run | Yrd Mat Maximum Alert Level . | . . Low Security (%) 100 | 100 100 Level 1 . | . . Level 2 . | . . Level 3 . | . . Level 4 . | . . Level 5 . | . . High Security . | . . Max Security . | . . Peak Influence 61 | 5 61 Initial . | . . Average 6 | 1 8 Influence Increases 151 | 35 116 Destroy 0b10 Robot/C 100 | . 100 Destroy 0b10 Robot/NC 40 | 35 5 Destroy Leader 10 | . 10 Destroy Structure 1 | . 1 Influence Decreases 151 | 35 116 Time Decay 116 | 35 81 Lost Part 35 | . 35 Squads Dispatched 1 | . 1 Investigation . | . . Extermination . | . . Reinforcement 1 | . 1 Assault . | . . Garrison . | . . Intercept . | . . Searches Triggered . | . . Construction Impeded . | . . Haulers Reinforced . | . . Active Scanning Responses . | . . Cargo Convoy Interrupts . | . . Stealth | -11 -10 --------- Run | Yrd Mat Distress Signals . | . . Communications Jammed . | . . Distress Signals . | . . Times Spotted 13 | . 13 Peak Tracking Total 6 | . 6 Tactical Retreats . | . . Traps | -11 -10 ------- Run | Yrd Mat Traps Triggered . | . . Indirectly . | . . Trap Hack Attempts . | . . Triggered . | . . Disarmed . | . . Reprogrammed . | . . Reused . | . . Traps Extracted . | . . Installed . | . . Triggered . | . . Machines | -11 -10 ---------- Run | Yrd Mat Machines Disabled . | . . Max in Single Turn . | . . Machines Repaired . | . . Machines Dismantled . | . . Machines Sabotaged . | . . Overloaded Fab Kills . | . . Hacking | -11 -10 --------- Run | Yrd Mat Machines Accessed . | . . Terminals . | . . Fabricators . | . . Repair Stations . | . . Recycling Units . | . . Scanalyzers . | . . Garrison Access . | . . Total Hacks . | . . Successful . | . . Failed . | . . Catastrophic . | . . Database Lockouts . | . . Manual . | . . Terminals . | . . Fabricators . | . . Repair Stations . | . . Recycling Units . | . . Scanalyzers . | . . Garrison Access . | . . Terminal Hacks . | . . Fabricator Hacks . | . . Repair Station Hacks . | . . Recycling Unit Hacks . | . . Scanalyzer . | . . Garrison Access Hacks . | . . Unauthorized Hacks . | . . Terminals . | . . Fabricators . | . . Repair Stations . | . . Recycling Units . | . . Scanalyzers . | . . Garrison Access . | . . Data Cores Recovered . | . . Used . | . . Hacking Detections . | . . Full Trace Events . | . . Feedback Events . | . . Feedback Blocked . | . . Robot Schematics Acquired . | . . Robots Built . | . . Authchips . | . . Time . | . . Total Robot Build Rating . | . . Part Schematics Acquired . | . . Parts Built . | . . Authchips . | . . Time . | . . Total Part Build Rating . | . . Parts Repaired . | . . Time . | . . Parts Recycled . | . . Recycled Matter . | . . Retrieved Matter . | . . Retrieved Components . | . . Parts Scanalyzed . | . . Part Schematics Acquired . | . . Parts Damaged . | . . Bothacking | -11 -10 ------------ Run | Yrd Mat Used RIF Installer . | . . Robots Hacked . | . . Non-combat . | . . Combat . | . . Robot Hacks Applied . | . . Relay Couplers Released . | . . Fabnet Peak Effective % . | . . Robots Rewired . | . . Allies Hacked . | . . Hacks Repelled . | . . Allies | -11 -10 -------- Run | Yrd Mat Total Allies . | . . Largest Group . | . . Highest-Rated Group . | . . Highest-Rated Ally . | . . Total Orders . | . . Ally Attacks . | . . Total Damage . | . . Kills . | . . Allies Corrupted . | . . Allies Melted . | . . Intel | -11 -10 ------- Run | Yrd Mat Active Infowar (turns) 1062 | 34 1028 Terrain 1062 | 34 1028 Robot Analysis Total . | . . Derelict Logs Recovered . | . . Drone Launches . | . . Drone Recoveries . | . . Exploration | -11 -10 ------------- Run | Yrd Mat Turns Passed 1380 | 310 1070 Spaces Moved 356 | 201 155 Core 13 | 13 . Treads . | . . Legs 343 | 188 155 Wheels . | . . Hover . | . . Flight . | . . Fastest Speed 50 | 50 120 Average Speed 117 | 115 120 Slowest Speed 120 | 120 120 Overloaded Moves . | . . Propulsion Burnouts . | . . Robots Hopped . | . . Potential Cave-ins . | . . Cave-ins Triggered . | . . Exploration Rate (%) 12 | 5 20 Regions Visited 1 Branch Regions . Pre-discovered Areas . | . . Known Exits Taken . | . . Unknown Exits Taken 1 | 1 . Scrap Searched . | . . Spaces Dug . | . . Terrain Destroyed 1 | . 1 Melee . | . . Projectile 1 | . 1 AOE . | . . Terrain Rammed . | . . Walls Destroyed . | . . Machines Disabled . | . . Actions | -11 -10 --------- Run | Yrd Mat Total 1210 | 242 968 Wait 756 | . 756 Move 355 | 200 155 Hop . | . . Pick Up 15 | 11 4 Fast Attach . | . . Attach 13 | 7 6 Detach . | . . Swap . | . . Drop 2 | 1 1 Fire 69 | 23 46 Melee . | . . Ram . | . . Kick . | . . Crush . | . . Escape Stasis . | . . Rewire . | . . Trap . | . . Miscellaneous . | . . Route ------- -11/Scrapyard -10/Materials History --------- Turn | Location | Event 7 | -11/Scrapyard | Discovered new exit (range 15) 311 | -11/Scrapyard | Entered Materials 312 | -10/Materials | Build established: Mutant 1323 | -10/Materials | Core integrity fell below 50% 1347 | -10/Materials | Core integrity fell below 20% 1381 | -10/Materials | Destroyed by G-47 Trooper with Particle Gun Last Messages --------------- Lgt. Assault Rifle destroyed. Imp. Terrain Scanner destroyed. G-34 Mercenary destroyed. Lgt. Ion Engine destroyed. Mining Laser destroyed. R-06 Scavenger collects Aluminum Leg. Acquired 19 matter. U-05 Engineer builds a Wall. Acquired Med. Armor Plating. Dropped Sml. Storage Unit. Acquired Imp. Light Cannon. R-06 Scavenger collects Sml. Storage Unit. R-06 Scavenger suffers critical hit (Burn). Acquired Med. Armor Plating. Aluminum Leg destroyed. G-47 Trooper suffers critical hit (Blast). Destroyed Lgt. Nuclear Core. G-47 Trooper knocked back. G-34 Mercenary Ion Engine blasted off. R-06 Scavenger collects Ion Engine. Map ----- +----------------------------------------------------+ | ?????????????????????????????????????????????????? | | ?????????????????????????????????????????????????? | | ?????????????????????????????????? ??????????????? | | ?????????????????????????????????? #????????????? | | ????????????????????????????????? #????????????? | | ??????????????????????????#?????? #?#??????????? | | ????????????????????????????????? #????????????? | | ????????????????????????????????# #???????#????? | | ??????????????????????? ?#??????# #????"???????? | | ?????????????????????# ???????+ +????????????? | | ?????????????????????# ???????# #????????????? | | ?????????????????????# ???????# #????????????? | | ??????????????????? ##k ##????## ############?? | | ????????????????????# ????## ?? | | ????????????????????# ????#" ?? | | ????????????????????# ????#T ?? | | ????????????????????# ????#" ?? | | ????????????????????# ?????# !!! """"? ? | | ?????????????????????# #????## !!! """" | | ?????????????????????# ####### !! """" | | ??????????????????#### % | | ????????????????" + r % | | ????????????????????## ggg | | ???????????????????### % ####### ###+##### | | ???????????????????# #?????# #???#???? | | ??????????????????##==] @#??#??# #???????? | | ???????????????????#==]]!!#????## ##??????? | | ???????????????????########?????###+## #???????? | | ???????????????????????????????? ?? ## #???????? | | ??????????????????????????????????? ## #?????#? | | ??????????????????????????????????? ## ##??### ? | | ???????????????????????????#??????? ## #???##?? | | ????????????????????????????##?"?? ??# ###??#??? | | ??????????????????????????????? ## ##?#?#?#? | | ??????????????????????????????#???#?# #######? | | ??????????????????????????????????### " #?#???#? | | ??????????????????????????????####### "T #?##?### | | ???????????????????????????????###### #?#?#??? | | ??????????????????????????????###??## #?##??#? | | ????????????????????????????##?####### ######### | | ?????????????????????????#??##?##?#?## # | | ????????????????????????????#?####?#?# %# | | ??????????????????????????#?#?#?##?#?# # | | ?????????????????????????????#?#??#?## # | | ??????????????????????????#?##?#?##?## #* | | ????????????????????????????#??###???# %+% | | ????????????????????????#????#???###?# # | | ????????????????????????????####?#??## # | | ????????????????????????????####??#?## # | | ????????????????????????????###################### | +----------------------------------------------------+ Best States ------------- Heat Dissipation 25 Energy Generation 10 Energy Capacity 250 Matter Stores 300 Matter Capacity 300 Sight Range 16 Terrain Scan Range 16 Terrain Scan Density 10 Armor Coverage 450 Evasion (%) 55 Item Schematics ----------------- None Robot Schematics ------------------ None Fabricated ------------ Nothing Repaired ---------- Nothing Alien Tech Used ----------------- None Achievements -------------- None Challenges ------------ None Game ------ Seed MobileClaymoresAirjet Manual? 0 Play Time 00:06:17 Cumulative 11.0 hours Start 2025.06.15 @ 15:28:12 End 2025.06.15 @ 15:34:18 Sessions 1 Manual Loads 0 Difficulty Rogue Special Mode None Game No. 13 Rogue 13 Adventurer 0 Explorer 0 Win Type - Total 0 Types 0/0/0/0/0/0/0/0/0/0 Lore% 8 Gallery% 12 Achievement% 11 Wizard Run 0 Options --------- Layout 1 ASCII 0 Keyboard 0 Movement Mouse Keybinds 0 Fullscreen 1 Font 32/SmallcapsGlow Map View 50x35 Zoom Use 0% Tactical HUD 0 Map Filters NONE Filters NONE Steam 1 RUN: 20cd7129-e4c9-4c69-95e8-1bc3f6f5b60e